fUST/lending_fUST_20260124
["ID","MTS","AMOUNT","RATE_DAILY","PERIOD"]
[403175869,1769243439813,-1527.18698089,0.00016963,2]
[403175871,1769243439823,-3432.73453631,0.00016963,2]
[403175874,1769243439834,-864.0,0.00017058,2]
[403175876,1769243439843,-681.28742643,0.00017091,2]
[403175878,1769243439852,-2725.14970572,0.00017091,2]
[403175879,1769243439862,-6125.45525103,0.00017091,2]
[403175881,1769243439871,-160.0,0.00017096,11]
[403175884,1769243439881,-223.29593843,0.00017096,5]
[403175886,1769243439891,-475.0,0.00017625,2]
[403175887,1769243439901,-1152.0,0.0001784,2]
[403175889,1769243439911,-878.96,0.00017846,3]
[403175891,1769243439922,-732.46,0.00017846,3]
[403175893,1769243439932,-366.23,0.00017846,3]
[403175895,1769243439941,-183.12,0.00017846,3]
[403175897,1769243439950,-549.38,0.00017846,3]
[403175899,1769243439964,-467.57182358,0.00017856,2]
[403175901,1769243439973,-1870.28729433,0.00017856,2]
[403175903,1769243439982,-4203.93826583,0.00017856,2]
[403175905,1769243439990,-448.2791414,0.00017856,2]
[403175907,1769243440000,-1793.11656561,0.00017856,2]
[403175909,1769243440009,-4034.51227262,0.00017856,2]
[403175911,1769243440019,-7172.46626243,0.00017856,2]
[403175913,1769243440029,-708.76773181,0.00017856,2]
[403175915,1769243440039,-3160.20253441,0.00017856,2]
[403175917,1769243440048,-343.27299843,0.00017856,2]
[403175919,1769243440057,-1373.09199374,0.00017856,2]
[403175921,1769243440066,-3089.45698591,0.00017856,2]
[403175923,1769243440075,-5486.87560697,0.00017856,2]
[403175925,1769243440084,-461.08779576,0.00017856,2]
[403175927,1769243440094,-1844.35118305,0.00017856,2]
[403175929,1769243440103,-4149.79016187,0.00017856,2]
[403175931,1769243440113,-7377.40473222,0.00017856,2]
[403175933,1769243440122,-4668.84,0.00017948,2]
[403175935,1769243440131,-10171.75315812,0.0001799,2]
[403175937,1769243440140,-239.25454827,0.00018299,2]
[403175939,1769243440149,-1056035.85134044,0.00018522,2]
[403175942,1769243440165,-6630.26468874,0.00018522,2]
[403175944,1769243440176,-61247.42152485,0.00018522,2]
[403176037,1769243441081,-98620.53789126,0.00018522,2]
[403176039,1769243441093,-1627.3680173,0.00018522,2]
[403176318,1769243446881,-23906.06026411,0.00018522,2]
[403176440,1769243880369,172.49,3.436e-05,2]
[403176441,1769243880575,172.49,3.436e-05,2]
[403176459,1769244166040,16809.1162367,0.00011756,2]
[403176460,1769244198430,277.583618,0.00011669,2]
[403176611,1769244631723,-300.0,0.00012061,2]
[403176693,1769244638014,-151.58639608,0.00012165,2]
[403176694,1769244638024,-719.98,0.00012354,2]
[403176695,1769244638034,-300.0,0.00012539,2]
[403176696,1769244638043,-41173.20721732,0.0001254,2]
[403176697,1769244638052,-186.93121589,0.0001254,2]
[403176698,1769244638062,-232.88900699,0.0001254,2]
[403176699,1769244638072,-500.0,0.0001254,2]
[403176700,1769244638081,-500.0,0.0001254,2]
[403176701,1769244638091,-500.0,0.0001254,2]
[403176702,1769244638101,-500.0,0.0001254,2]
[403176703,1769244638111,-297.9914878,0.0001254,2]
[403176704,1769244638121,-500.0,0.0001254,2]
[403176705,1769244638131,-500.0,0.0001254,2]
[403176706,1769244638141,-500.0,0.0001254,2]
[403176707,1769244638151,-500.0,0.0001254,2]
[403176708,1769244638160,-500.0,0.0001254,2]
[403176709,1769244638170,-500.0,0.0001254,2]
[403176710,1769244638180,-500.0,0.0001254,2]
[403176711,1769244638190,-500.0,0.0001254,2]
[403176712,1769244638200,-500.0,0.0001254,2]
[403176713,1769244638210,-500.0,0.0001254,2]
[403176714,1769244638219,-620.0,0.0001254,2]
[403176715,1769244638229,-500.0,0.0001254,2]
[403176716,1769244638238,-500.0,0.0001254,2]
[403176717,1769244638247,-500.0,0.0001254,2]
[403176718,1769244638257,-324.59944256,0.0001254,2]
[403176719,1769244638267,-500.0,0.0001254,2]
[403176720,1769244638276,-500.0,0.0001254,2]
[403176721,1769244638285,-500.0,0.0001254,2]
[403176722,1769244638295,-500.0,0.0001254,2]
[403176723,1769244638305,-500.0,0.0001254,2]
[403176724,1769244638314,-500.0,0.0001254,2]
[403176725,1769244638324,-500.0,0.0001254,2]
[403176726,1769244638333,-500.0,0.0001254,2]
[403176727,1769244638343,-581.34232485,0.0001254,2]
[403176728,1769244638352,-563.02583403,0.0001254,2]
[403176729,1769244638362,-500.0,0.0001254,2]
[403176730,1769244638371,-500.0,0.0001254,2]
[403176731,1769244638381,-500.0,0.0001254,2]
[403176732,1769244638391,-500.0,0.0001254,2]
[403176733,1769244638400,-560.21521085,0.0001254,2]
[403176734,1769244638413,-500.0,0.0001254,2]
[403176735,1769244638422,-500.0,0.0001254,2]
[403176736,1769244638432,-500.0,0.0001254,2]
[403176737,1769244638441,-500.0,0.0001254,2]
[403176738,1769244638450,-500.0,0.0001254,2]
[403176739,1769244638460,-500.0,0.0001254,2]
[403176740,1769244638469,-500.0,0.0001254,2]
[403176741,1769244638479,-500.0,0.0001254,2]
[403176742,1769244638488,-259.02,0.0001254,2]
[403176743,1769244638498,-300.0,0.00012793,2]
[403176744,1769244638507,-300.0,0.00012793,2]
[403176745,1769244638516,-300.0,0.00012793,2]
[403176746,1769244638526,-300.0,0.00012793,2]
[403176747,1769244638535,-300.0,0.00012793,2]
[403176748,1769244638544,-300.0,0.00012793,2]
[403176749,1769244638554,-300.0,0.00012793,2]
[403176750,1769244638563,-300.0,0.00012793,2]
[403176751,1769244638573,-300.0,0.00012793,2]
[403176752,1769244638583,-300.0,0.00012793,2]
[403176753,1769244638604,-300.0,0.00012793,2]
[403176754,1769244638613,-300.0,0.00012793,2]
[403176755,1769244638622,-300.0,0.00012793,2]
[403176756,1769244638637,-300.0,0.00012793,2]
[403176757,1769244638653,-300.0,0.00012793,2]
[403176758,1769244638664,-600.0,0.00012793,2]
[403176759,1769244638675,-259.02,0.00012814,2]
[403176760,1769244638685,-259.02,0.00013088,2]
[403176761,1769244638695,-259.02,0.00013362,2]
[403176762,1769244638706,-1439.96,0.00013478,2]
[403176763,1769244638715,-259.05475831,0.00013636,2]
[403176764,1769244638723,-420.0,0.00013757,2]
[403176765,1769244638733,-720.0,0.00014072,2]
[403176766,1769244638742,-178.87194738,0.00014165,2]
[403176767,1769244638754,-188.53117624,0.00014378,2]
[403176768,1769244638763,-160.0,0.00014444,3]
[403176769,1769244638772,-151.0,0.00014494,2]
[403176770,1769244638782,-151.0,0.00014593,2]
[403176771,1769244638791,-2159.93,0.00014601,2]
[403176772,1769244638800,-188.53117624,0.00014817,2]
[403176773,1769244638809,-151.0,0.00014881,2]
[403176774,1769244638818,-150.0,0.00015075,2]
[403176775,1769244638828,-500.0,0.00015075,2]
[403176776,1769244638837,-150.0,0.00015075,2]
[403176777,1769244638847,-587.0,0.00015094,2]
[403176778,1769244638856,-160.0,0.00015107,4]
[403176779,1769244638865,-500.0,0.00015212,2]
[403176780,1769244638875,-150.0,0.00015212,2]
[403176781,1769244638885,-350.0,0.00015349,2]
[403176782,1769244638895,-150.0,0.00015349,2]
[403176783,1769244638904,-864.0,0.00015479,2]
[403176784,1769244638914,-150.0,0.00015486,2]
[403176785,1769244638923,-250.0,0.00015623,2]
[403176786,1769244638933,-10000.0,0.00015623,2]
[403176787,1769244638942,-1317.24,0.00015623,2]
[403176788,1769244638951,-10000.0,0.00015623,2]
[403176789,1769244638960,-10000.0,0.00015687,2]
[403176790,1769244638969,-2879.91,0.00015724,2]
[403176791,1769244638978,-160.0,0.0001577,5]
[403176792,1769244638987,-3042.55708741,0.00015989,7]
[403176793,1769244638996,-1357.16995856,0.00016105,7]
[403176794,1769244639006,-206.15749867,0.00016165,2]
[403176795,1769244639015,-3956.6418601,0.00016204,2]
[403176796,1769244639025,-4673.40648971,0.00016321,7]
[403176797,1769244639035,-5428.67983425,0.00016321,7]
[403176798,1769244639044,-151.0,0.00016421,2]
[403176799,1769244639054,-160.0,0.00016433,6]
[403176800,1769244639063,-177.18690615,0.00016438,2]
[403176801,1769244639072,-823.0,0.00016561,2]
[403176802,1769244639083,-804.96,0.00016632,2]
[403176803,1769244639092,-151.0,0.00016635,2]
[403176804,1769244639101,-3129.49189769,0.0001683,7]
[403176805,1769244639110,-3599.89,0.00016847,2]
[403176806,1769244639120,-1269.77,0.0001698,3]
[403176807,1769244639129,-634.88,0.0001698,3]
[403176808,1769244639138,-317.44,0.0001698,3]
[403176809,1769244639148,-476.21,0.0001698,3]
[403176810,1769244639157,-151.0,0.00016988,2]
[403176811,1769244639166,-10171.75315812,0.0001699,2]
[403176812,1769244639175,-1000.0,0.00017027,2]
[403176813,1769244639185,-160.0,0.00017096,7]
[403176814,1769244639194,-223.29593843,0.00017096,5]
[403176815,1769244639203,-158.72,0.00017141,3]
[403176816,1769244639213,-1000000.0,0.00017151,2]
[403176817,1769244639222,-844.63,0.00017151,2]
[403176818,1769244639232,-844.63,0.00017151,2]
[403176819,1769244639241,-844.63,0.00017151,2]
[403176820,1769244639250,-844.63,0.00017151,2]
[403176821,1769244639260,-844.63,0.00017151,2]
[403176822,1769244639270,-844.63,0.00017151,2]
[403176823,1769244639280,-844.63,0.00017151,2]
[403176824,1769244639289,-844.63,0.00017151,2]
[403176825,1769244639299,-844.63,0.00017151,2]
[403176826,1769244639308,-844.63,0.00017151,2]
[403176827,1769244639318,-844.63,0.00017151,2]
[403176828,1769244639327,-844.63,0.00017151,2]
[403176829,1769244639336,-844.63,0.00017151,2]
[403176830,1769244639346,-844.63,0.00017151,2]
[403176831,1769244639355,-844.63,0.00017151,2]
[403176832,1769244639364,-844.63,0.00017151,2]
[403176833,1769244639373,-844.63,0.00017151,2]
[403176834,1769244639382,-844.63,0.00017151,2]
[403176835,1769244639392,-844.63,0.00017151,2]
[403176836,1769244639401,-844.63,0.00017151,2]
[403176837,1769244639415,-844.63,0.00017151,2]
[403176838,1769244639424,-844.63,0.00017151,2]
[403176839,1769244639434,-844.63,0.00017151,2]
[403176840,1769244639443,-844.63,0.00017151,2]
[403176841,1769244639453,-844.63,0.00017151,2]
[403176842,1769244639463,-844.63,0.00017151,2]
[403176843,1769244639472,-844.63,0.00017151,2]
[403176844,1769244639482,-844.63,0.00017151,2]
[403176845,1769244639494,-844.63,0.00017151,2]
[403176846,1769244639504,-844.63,0.00017151,2]
[403176847,1769244639513,-753.21779429,0.00017151,2]
[403176848,1769244639527,-91.41220571,0.00017151,2]
[403176849,1769244639536,-844.63,0.00017151,2]
[403176850,1769244639545,-844.63,0.00017151,2]
[403176851,1769244639555,-844.63,0.00017151,2]
[403176852,1769244639564,-746.68603192,0.00017151,2]
[403176853,1769244639575,-97.94396808,0.00017151,2]
[403176854,1769244639586,-844.63,0.00017151,2]
[403176856,1769244639595,-844.63,0.00017151,2]
[403176857,1769244639605,-844.63,0.00017151,2]
[403176858,1769244639614,-903.08,0.00017151,2]
[403176859,1769244639624,-3044.75772148,0.00017309,2]
[403176860,1769244639635,-475.0,0.00017556,2]
[403176861,1769244639644,-5824.79329647,0.000178,3]
[403176863,1769244639655,-4864.44454768,0.000178,3]
[403176865,1769244639664,-214.53363719,0.00017856,2]
[403176867,1769244639674,-858.13454878,0.00017856,2]
[403176869,1769244639692,-1930.80273475,0.00017856,2]
[403176870,1769244639701,-3432.53819512,0.00017856,2]
[403176872,1769244639710,-5363.34092987,0.00017856,2]
[403176874,1769244639719,-7723.21093901,0.00017856,2]
[403176876,1769244639728,-10501.63607432,0.00017856,2]
[403176878,1769244639738,-227.02409754,0.00017856,2]
[403176880,1769244639747,-908.09639014,0.00017856,2]
[403176882,1769244639756,-2043.21687782,0.00017856,2]
[403176884,1769244639766,-3632.38556057,0.00017856,2]
[403176887,1769244639776,-5675.60243839,0.00017856,2]
[403176889,1769244639785,-8164.69464376,0.00017856,2]
[403176891,1769244639793,-4319.87,0.0001797,2]
[403176892,1769244639804,-3563.07,0.00018163,3]
[403176894,1769244639813,-233.44304997,0.00018165,2]
[403176896,1769244639822,-1152.0,0.0001817,2]
[403176898,1769244639831,-155.344,0.0001833,2]
[403176901,1769244639841,-162.38071899,0.00018331,2]
[403176903,1769244639850,-250.0,0.00018331,2]
[403176905,1769244639859,-250.0,0.00018331,2]
[403176906,1769244639869,-500.0,0.00018331,2]
[403176909,1769244639878,-187.78006525,0.00018331,2]
[403176910,1769244639888,-500.0,0.00018331,2]
[403176913,1769244639897,-194.72792766,0.00018331,2]
[403176915,1769244639907,-500.0,0.00018331,2]
[403176917,1769244639916,-201.93286099,0.00018331,2]
[403176919,1769244639925,-1957.856,0.00018331,2]
[403176921,1769244639934,-500.0,0.00018331,2]
[403176923,1769244639944,-209.40437684,0.00018331,2]
[403176925,1769244639953,-500.0,0.00018331,2]
[403176927,1769244639962,-217.15233878,0.00018331,2]
[403176929,1769244639971,-500.0,0.00018331,2]
[403176931,1769244639980,-225.18697532,0.00018331,2]
[403176933,1769244639989,-500.0,0.00018331,2]
[403176935,1769244639998,-233.51889341,0.00018331,2]
[403176937,1769244640007,-242.15909246,0.00018331,2]
[403176939,1769244640016,-251.11897888,0.00018331,2]
[403176941,1769244640025,-260.4103811,0.00018331,2]
[403176943,1769244640034,-270.0455652,0.00018331,2]
[403176944,1769244640043,-500.0,0.00018331,2]
[403176947,1769244640054,-280.03725112,0.00018331,2]
[403176949,1769244640063,-290.39862941,0.00018331,2]
[403176951,1769244640072,-2487.15318209,0.00018331,2]
[403176953,1769244640081,-500.0,0.00018331,2]
[403176955,1769244640090,-500.0,0.00018331,2]
[403176957,1769244640099,-500.0,0.00018331,2]
[403176959,1769244640108,-500.0,0.00018331,2]
[403176960,1769244640117,-500.0,0.00018331,2]
[403176963,1769244640126,-500.0,0.00018331,2]
[403176964,1769244640137,-301.1433787,0.00018331,2]
[403176966,1769244640146,-514.84070869,0.00018331,2]
[403176968,1769244640155,-2539.54,0.0001835,3]
[403176971,1769244640165,-1269.76,0.0001835,3]
[403176973,1769244640174,-634.88,0.0001835,3]
[403176975,1769244640183,-2030.296672,0.00018386,2]
[403176977,1769244640193,-2105.41764886,0.00018441,2]
[403176979,1769244640203,-35702.49861417,0.00018463,2]
[403176981,1769244640216,-2447.396,0.00018463,2]
[403176983,1769244640227,-1084.902,0.00018463,2]
[403176985,1769244640238,-804.31861333,0.00018463,2]
[403176987,1769244640247,-694.95723642,0.00018496,2]
[403176989,1769244640255,-317.44,0.00018511,3]
[403176991,1769244640264,-3290.1198435,0.00018522,2]
[403177322,1769244645870,-6880.24104729,0.00013972,2]
[403177324,1769244645879,-2000.0,0.00018331,2]
[403177325,1769244645888,-2000.0,0.00018331,2]
[403177326,1769244645897,-2000.0,0.00018331,2]
[403177327,1769244645906,-2000.0,0.00018331,2]
[403177328,1769244645916,-2000.0,0.00018331,2]
[403177329,1769244645926,-2000.0,0.00018331,2]
[403177330,1769244645936,-2000.0,0.00018331,2]
[403177331,1769244645945,-1628.94482782,0.00018331,2]
[403177332,1769244645956,-123058.89680526,0.00018522,2]
[403177347,1769245189149,160.0,4.2e-07,2]
[403177348,1769245190180,160.0,4.2e-07,2]
[403177349,1769245191219,160.0,4.2e-07,2]
[403177350,1769245192248,160.0,4.2e-07,2]
[403177351,1769245193282,160.0,4.2e-07,2]
[403177352,1769245194304,160.0,4.2e-07,2]
[403177353,1769245195343,160.0,4.2e-07,2]
[403177354,1769245196418,160.0,4.2e-07,2]
[403177355,1769245197435,160.0,4.2e-07,2]
[403177356,1769245221469,-986.35,0.00012352,2]
[403177357,1769245221496,-594.0,0.00012352,2]
[403177358,1769245221525,-150.0,0.00012707,2]
[403177359,1769245221610,-388.77234242,0.00013474,2]
[403177360,1769245250746,-163.0223049,0.00013696,2]
[403177361,1769245250772,-500.0,0.00013696,2]
[403177362,1769245250797,-180.0,0.00013696,2]
[403177363,1769245250861,-44.3053902,0.00013696,2]
[403177364,1769245605407,20902.319157,0.00012,2]
[403177365,1769245680682,156.32,3.436e-05,2]
[403177366,1769245680716,156.32,3.436e-05,2]
[403177410,1769245837922,-1028.78,0.00012242,2]
[403177411,1769245837932,-593.0,0.00012242,2]
[403177412,1769245837943,-155.54836821,0.0001252,2]
[403177413,1769245837954,-2057.56,0.00013354,2]
[403177414,1769245837965,-151.0,0.00013688,2]
[403177415,1769245837974,-151.0,0.00013688,2]
[403177416,1769245837985,-151.0,0.00013688,2]
[403177417,1769245837995,-1200.0,0.00013688,2]
[403177418,1769245838004,-1004.0719827,0.00013689,2]
[403177419,1769245838014,-300.0,0.00013689,2]
[403177420,1769245838023,-300.0,0.00013689,2]
[403177421,1769245838032,-300.0,0.00013689,2]
[403177422,1769245838040,-40214.63745628,0.0001369,2]
[403177423,1769245838049,-500.0,0.00013695,2]
[403177424,1769245838058,-286.81581387,0.00013695,2]
[403177425,1769245838068,-228.91280121,0.00013695,2]
[403177426,1769245838078,-240.47525803,0.00013695,2]
[403177427,1769245838087,-313.84438251,0.00013695,2]
[403177428,1769245838097,-510.03434645,0.00013698,2]
[403177429,1769245838106,-565.99,0.00013698,2]
[403177430,1769245838115,-565.99,0.00013698,2]
[403177431,1769245838124,-565.99,0.00013698,2]
[403177432,1769245838137,-500.0,0.00013698,2]
[403177433,1769245838147,-573.64014969,0.00013698,2]
[403177434,1769245838156,-1000.0,0.00013699,2]
[403177435,1769245838166,-159.88397589,0.00013699,2]
[403177436,1769245838175,-300.0,0.00013971,2]
[403177437,1769245838453,-300.0,0.00013971,2]
[403177438,1769245838463,-300.0,0.00013971,2]
[403177439,1769245838473,-300.0,0.00013971,2]
[403177440,1769245838482,-300.0,0.00013971,2]
[403177441,1769245838491,-300.0,0.00013971,2]
[403177442,1769245838500,-300.0,0.00013971,2]
[403177443,1769245838510,-300.0,0.00013971,2]
[403177444,1769245838520,-300.0,0.00013971,2]
[403177445,1769245838530,-300.0,0.00013971,2]
[403177446,1769245838539,-300.0,0.00013971,2]
[403177447,1769245838549,-300.0,0.00013971,2]
[403177448,1769245838558,-300.0,0.00013971,2]
[403177449,1769245838568,-300.0,0.00013971,2]
[403177450,1769245838577,-300.0,0.00013971,2]
[403177451,1769245838587,-600.0,0.00014249,2]
[403177452,1769245838597,-565.99,0.00014443,2]
[403177453,1769245838606,-3086.34,0.00014467,2]
[403177454,1769245838614,-183.54707449,0.0001452,2]
[403177455,1769245838623,-500.0,0.00014667,2]
[403177456,1769245838633,-500.0,0.00014667,2]
[403177457,1769245838643,-500.0,0.00014667,2]
[403177458,1769245838652,-500.0,0.00014667,2]
[403177459,1769245838662,-500.0,0.00014667,2]
[403177460,1769245838671,-7553.59233523,0.00014668,2]
[403177461,1769245838681,-6020.21091637,0.00014781,2]
[403177462,1769245838690,-160.0,0.00014881,3]
[403177463,1769245838699,-420.0,0.00014902,2]
[403177464,1769245838709,-154.74,0.00014902,2]
[403177465,1769245838718,-154.73,0.00014902,2]
[403177466,1769245838731,-500.0,0.00014941,2]
[403177467,1769245838740,-420.0,0.00015002,2]
[403177468,1769245838750,-420.0,0.00015002,2]
[403177469,1769245838759,-500.0,0.00015006,2]
[403177470,1769245838768,-500.0,0.00015006,2]
[403177471,1769245838777,-500.0,0.00015006,2]
[403177472,1769245838787,-500.0,0.00015006,2]
[403177473,1769245838796,-500.0,0.00015006,2]
[403177474,1769245838805,-501.57168607,0.00015006,2]
[403177475,1769245838816,-500.0,0.00015006,2]
[403177476,1769245838825,-500.0,0.00015006,2]
[403177477,1769245838834,-1680.0,0.00015057,2]
[403177478,1769245838843,-500.0,0.00015215,2]
[403177479,1769245838852,-151.0,0.00015237,2]
[403177480,1769245838862,-151.0,0.00015281,2]
[403177481,1769245838872,-500.0,0.00015489,2]
[403177482,1769245838884,-4115.13,0.0001558,2]
[403177483,1769245838893,-565.99,0.00015622,2]
[403177484,1769245838902,-720.0,0.00015674,2]
[403177485,1769245838911,-565.99,0.00015723,2]
[403177486,1769245838921,-502.89555556,0.00015763,2]
[403177487,1769245838930,-160.0,0.00015988,4]
[403177488,1769245838940,-10171.75315812,0.0001599,2]
[403177489,1769245838950,-565.99,0.0001632,2]
[403177490,1769245838959,-177.18690615,0.00016438,2]
[403177491,1769245838969,-156.0,0.0001644,2]
[403177492,1769245838978,-587.0,0.0001644,2]
[403177493,1769245838987,-211.54578077,0.0001652,2]
[403177494,1769245838997,-1666.0,0.00016562,2]
[403177495,1769245839006,-5143.91,0.00016693,2]
[403177496,1769245839015,-10427.02197244,0.00016779,2]
[403177497,1769245839024,-476.17,0.00016869,3]
[403177498,1769245839033,-238.08,0.00016869,3]
[403177499,1769245839042,-714.27,0.00016869,3]
[403177500,1769245839051,-200.3701185,0.00016878,2]
[403177501,1769245839061,-160.39102437,0.00016878,2]
[403177502,1769245839070,-945989.64736047,0.00016879,2]
[403177503,1769245839090,-54010.35263953,0.00016879,2]
[403177504,1769245839098,-849.03,0.00016879,2]
[403177505,1769245839107,-849.03,0.00016879,2]
[403177506,1769245839116,-849.03,0.00016879,2]
[403177507,1769245839125,-849.03,0.00016879,2]
[403177508,1769245839133,-849.03,0.00016879,2]
[403177509,1769245839143,-849.03,0.00016879,2]
[403177510,1769245839152,-849.03,0.00016879,2]
[403177511,1769245839161,-849.03,0.00016879,2]
[403177512,1769245839171,-849.03,0.00016879,2]
[403177513,1769245839181,-849.03,0.00016879,2]
[403177514,1769245839190,-849.03,0.00016879,2]
[403177515,1769245839200,-849.03,0.00016879,2]
[403177516,1769245839209,-849.03,0.00016879,2]
[403177517,1769245839218,-849.03,0.00016879,2]
[403177518,1769245839227,-849.03,0.00016879,2]
[403177519,1769245839237,-849.03,0.00016879,2]
[403177520,1769245839246,-849.03,0.00016879,2]
[403177521,1769245839255,-849.03,0.00016879,2]
[403177522,1769245839264,-849.03,0.00016879,2]
[403177523,1769245839274,-849.03,0.00016879,2]
[403177524,1769245839284,-849.03,0.00016879,2]
[403177525,1769245839294,-849.03,0.00016879,2]
[403177526,1769245839303,-849.03,0.00016879,2]
[403177527,1769245839312,-849.03,0.00016879,2]
[403177528,1769245839321,-849.03,0.00016879,2]
[403177529,1769245839331,-849.03,0.00016879,2]
[403177530,1769245839340,-849.03,0.00016879,2]
[403177531,1769245839349,-849.03,0.00016879,2]
[403177532,1769245839358,-849.03,0.00016879,2]
[403177533,1769245839370,-849.03,0.00016879,2]
[403177534,1769245839381,-849.03,0.00016879,2]
[403177535,1769245839390,-849.03,0.00016879,2]
[403177536,1769245839402,-849.03,0.00016879,2]
[403177537,1769245839412,-849.03,0.00016879,2]
[403177538,1769245839421,-849.03,0.00016879,2]
[403177539,1769245839430,-849.03,0.00016879,2]
[403177540,1769245839439,-849.03,0.00016879,2]
[403177541,1769245839448,-849.03,0.00016879,2]
[403177542,1769245839458,-920.41,0.00016879,2]
[403177543,1769245839468,-171.73,0.00016879,2]
[403177544,1769245839477,-500.0,0.00016913,2]
[403177545,1769245839486,-500.0,0.00016913,2]
[403177546,1769245839495,-500.0,0.00016913,2]
[403177547,1769245839504,-565.99,0.00016989,2]
[403177548,1769245839513,-37764.9936796,0.00017,2]
[403177549,1769245839523,-160.0,0.00017096,5]
[403177550,1769245839532,-223.29593843,0.00017096,5]
[403177551,1769245839541,-565.99,0.0001715,2]
[403177552,1769245839550,-565.99,0.0001715,2]
[403177553,1769245839560,-565.99,0.0001715,2]
[403177554,1769245839569,-565.99,0.0001715,2]
[403177555,1769245839578,-565.99,0.0001715,2]
[403177556,1769245839587,-565.99,0.0001715,2]
[403177557,1769245839598,-565.99,0.0001715,2]
[403177558,1769245839608,-565.99,0.0001715,2]
[403177559,1769245839617,-565.99,0.0001715,2]
[403177560,1769245839627,-565.99,0.0001715,2]
[403177561,1769245839636,-565.99,0.0001715,2]
[403177562,1769245839647,-565.99,0.0001715,2]
[403177563,1769245839657,-565.99,0.0001715,2]
[403177564,1769245839666,-565.99,0.0001715,2]
[403177565,1769245839675,-565.99,0.0001715,2]
[403177566,1769245839684,-566.05,0.0001715,2]
[403177567,1769245839693,-171.73,0.00017153,2]
[403177568,1769245839703,-6020.21091635,0.00017195,2]
[403177569,1769245839711,-864.0,0.00017242,2]
[403177570,1769245839720,-1667.86156097,0.00017351,2]
[403177571,1769245839730,-151.0,0.00017514,2]
[403177572,1769245839740,-450.0,0.0001777,2]
[403177574,1769245839750,-1527.03,0.000178,3]
[403177576,1769245839759,-6172.69,0.00017806,2]
[403177578,1769245839768,-378.0985263,0.00017941,2]
[403177580,1769245839777,-1957.856,0.00017941,2]
[403177582,1769245839786,-151.0,0.00017941,2]
[403177584,1769245839795,-151.0,0.00017941,2]
[403177586,1769245839803,-151.0,0.00017941,2]
[403177588,1769245839812,-151.0,0.00017941,2]
[403177590,1769245839821,-151.0,0.00017941,2]
[403177592,1769245839830,-151.0,0.00017941,2]
[403177594,1769245839839,-151.0,0.00017941,2]
[403177596,1769245839848,-151.0,0.00017941,2]
[403177597,1769245839857,-151.0,0.00017941,2]
[403177599,1769245839866,-151.0,0.00017941,2]
[403177600,1769245839878,-243.52593403,0.00017941,2]
[403177602,1769245839887,-151.0,0.00017941,2]
[403177603,1769245839895,-151.0,0.00017941,2]
[403177604,1769245839904,-151.0,0.00017941,2]
[403177605,1769245839913,-151.0,0.00017941,2]
[403177606,1769245839921,-151.0,0.00017941,2]
[403177607,1769245839930,-151.0,0.00017941,2]
[403177608,1769245839939,-187.78006525,0.00017941,2]
[403177609,1769245839948,-151.0,0.00017941,2]
[403177610,1769245839956,-151.0,0.00017941,2]
[403177611,1769245839965,-194.72792766,0.00017941,2]
[403177612,1769245839974,-161.58217721,0.00017941,2]
[403177613,1769245839983,-151.0,0.00017941,2]
[403177614,1769245839992,-201.93286099,0.00017941,2]